[Event "7° Rencontres Internationales des Echecs Francophones"]
[Site "PARIS, France"]
[Date "2019.08.10"]
[Round "6.9"]
[White "Leconte, Jean-Olivier"]
[Black "Sochacki, Christophe"]
[Result "1/2-1/2"]
[TimeControl "90'+30' + 30seconds/move"]
[WhiteElo "2267"]
[BlackElo "2443"]

1. e4 {[%clk 00:05:04]} g6 {[%clk 00:05:05]} {[%emt 00:00:02]} 2. d4 {[%clk
00:05:04]} {[%emt 00:00:03]} Nf6 {[%clk 00:05:07]} {[%emt 00:00:02]} 3. e5
{[%clk 00:05:05]} {[%emt 00:00:02]} Nh5 {[%clk 00:05:09]} 4. Be2 {[%clk
00:05:02]} {[%emt 00:00:06]} d6 {[%clk 00:05:11]} {[%emt 00:00:01]} 5. Nf3
{[%clk 00:05:04]} {[%emt 00:00:01]} Nc6 {[%clk 00:05:08]} {[%emt 00:00:07]} 6.
exd6 {[%clk 00:04:46]} {[%emt 00:00:20]} Qxd6 {[%clk 00:05:09]} {[%emt
00:00:03]} 7. O-O {[%clk 00:03:59]} {[%emt 00:00:50]} Bg7 {[%clk 00:05:11]}
{[%emt 00:00:01]} 8. c3 {[%clk 00:03:52]} {[%emt 00:00:10]} O-O {[%clk
00:05:10]} {[%emt 00:00:03]} 9. Nbd2 {[%clk 00:03:54]} {[%emt 00:00:02]} Bf5
{[%clk 00:04:46]} {[%emt 00:00:27]} 10. Nc4 {[%clk 00:03:53]} {[%emt 00:00:03]}
Qd8 {[%clk 00:04:07]} {[%emt 00:00:43]} 11. h3 {[%clk 00:03:51]} {[%emt
00:00:04]} Nf6 {[%clk 00:04:06]} {[%emt 00:00:04]} 12. Re1 {[%clk 00:03:42]}
{[%emt 00:00:11]} Nd5 {[%clk 00:03:58]} {[%emt 00:00:12]} 13. Bf1 {[%clk
00:03:40]} {[%emt 00:00:04]} h5 {[%clk 00:03:32]} {[%emt 00:00:30]} 14. Bg5
{[%clk 00:03:40]} {[%emt 00:00:03]} Qd7 {[%clk 00:03:30]} {[%emt 00:00:06]} 15.
Qd2 {[%clk 00:03:31]} {[%emt 00:00:12]} Kh7 {[%clk 00:03:24]} {[%emt 00:00:09]}
16. Nce5 {[%clk 00:02:53]} {[%emt 00:00:40]} Nxe5 {[%clk 00:03:24]} {[%emt
00:00:04]} 17. Nxe5 {[%clk 00:02:54]} {[%emt 00:00:02]} Qd6 {[%clk 00:02:57]}
{[%emt 00:00:29]} 18. c4 {[%clk 00:02:36]} {[%emt 00:00:20]} Nf6 {[%clk
00:02:56]} {[%emt 00:00:05]} 19. Bf4 {[%clk 00:02:31]} {[%emt 00:00:08]} Qd8
{[%clk 00:02:46]} {[%emt 00:00:13]} 20. Rad1 {[%clk 00:02:30]} {[%emt
00:00:05]} Ne4 {[%clk 00:02:30]} {[%emt 00:00:18]} 21. Qc1 {[%clk 00:02:21]}
{[%emt 00:00:12]} Qc8 {[%clk 00:02:11]} {[%emt 00:00:23]} 22. g4 {[%clk
00:01:53]} {[%emt 00:00:31]} hxg4 {[%clk 00:01:49]} {[%emt 00:00:25]} 23. hxg4
{[%clk 00:01:55]} f6 {[%clk 00:01:38]} {[%emt 00:00:14]} 24. gxf5 {[%clk
00:01:55]} {[%emt 00:00:02]} fxe5 {[%clk 00:01:40]} {[%emt 00:00:02]} 25. fxg6+
{[%clk 00:01:30]} {[%emt 00:00:28]} Kxg6 {[%clk 00:01:38]} {[%emt 00:00:04]} 26.
Rxe4 {[%clk 00:01:17]} {[%emt 00:00:17]} exf4 {[%clk 00:01:35]} {[%emt
00:00:06]} 27. Rxf4 {[%clk 00:01:14]} {[%emt 00:00:05]} Kh7 {[%clk 00:01:05]}
{[%emt 00:00:33]} 28. Rh4+ {[%clk 00:01:01]} {[%emt 00:00:16]} Kg8 {[%clk
00:01:07]} {[%emt 00:00:02]} 29. Qg5 {[%clk 00:00:52]} {[%emt 00:00:11]} Qf5
{[%clk 00:01:01]} {[%emt 00:00:09]} 30. Qg3 {[%clk 00:00:40]} {[%emt 00:00:16]}
Qf3 {[%clk 00:00:59]} {[%emt 00:00:05]} 31. Qxf3 {[%clk 00:00:40]} {[%emt
00:00:04]} Rxf3 {[%clk 00:01:01]} 32. Bg2 {[%clk 00:00:42]} Rf6 {[%clk
00:00:58]} {[%emt 00:00:05]} 33. Bxb7 {[%clk 00:00:43]} {[%emt 00:00:02]} Rb8
{[%clk 00:01:01]} 34. Bg2 {[%clk 00:00:27]} {[%emt 00:00:18]} Rxb2 {[%clk
00:01:03]} {[%emt 00:00:02]} 35. f4 {[%clk 00:00:20]} {[%emt 00:00:10]} Rg6
{[%clk 00:00:55]} {[%emt 00:00:11]} 36. Rh2 {[%clk 00:00:22]} Rxa2 {[%clk
00:00:56]} {[%emt 00:00:02]} 37. Kh1 {[%clk 00:00:24]} e6 {[%clk 00:00:58]}
{[%emt 00:00:02]} 38. f5 {[%clk 00:00:22]} {[%emt 00:00:05]} Rg4 {[%clk
00:00:41]} {[%emt 00:00:19]} 39. fxe6 {[%clk 00:00:23]} {[%emt 00:00:03]} Rxd4
{[%clk 00:00:40]} {[%emt 00:00:03]} 40. Rf1 {[%clk 00:00:21]} {[%emt 00:00:05]}
Bf8 {[%clk 00:00:22]} {[%emt 00:00:22]} 41. e7 {[%clk 00:00:22]} {[%emt
00:00:01]} Bxe7 {[%clk 00:00:25]} 42. Bd5+ {[%clk 00:00:24]} Rxd5 {[%clk
00:00:27]} {[%emt 00:00:01]} 43. cxd5 {[%clk 00:00:24]} {[%emt 00:00:03]} Rxh2+
44. Kxh2 {[%clk 00:00:26]} a5 {[%clk 00:00:14]} 45. Kg2 {[%clk 00:00:21]}
{[%emt 00:00:08]} a4 {[%clk 00:00:16]} 46. Rc1 {[%clk 00:00:20]} {[%emt
00:00:03]} Bd6 {[%clk 00:00:15]} {[%emt 00:00:05]} 47. Kf3 {[%clk 00:00:19]}
{[%emt 00:00:04]} a3 {[%clk 00:00:16]} {[%emt 00:00:02]} 48. Rc2 {[%clk
00:00:19]} {[%emt 00:00:02]} Kf7 {[%clk 00:00:18]} {[%emt 00:00:02]} 49. Ke4
{[%clk 00:00:21]} Ke7 {[%clk 00:00:17]} {[%emt 00:00:04]} 50. Kd4 {[%clk
00:00:23]} {[%emt 00:00:01]} Kd7 {[%clk 00:00:17]} {[%emt 00:00:03]} 51. Kc4
{[%clk 00:00:25]} {[%emt 00:00:01]} Be5 {[%clk 00:00:15]} {[%emt 00:00:05]} 52.
Rg2 {[%clk 00:00:19]} {[%emt 00:00:08]} Bb2 {[%clk 00:00:09]} {[%emt 00:00:09]}
53. Kb3 {[%clk 00:00:21]} Kd6 {[%clk 00:00:11]} {[%emt 00:00:02]} 54. Rd2
{[%clk 00:00:23]} Ke5 {[%emt 00:00:10]} 1/2-1/2

[Event "7° Rencontres Internationales des Echecs Francophones"]
[Site "PARIS, France"]
[Date "2019.08.10"]
[Round "6.7"]
[White "Delorme, Alban"]
[Black "Chabanon, Jean-Luc"]
[Result "0-1"]
[TimeControl "90'+30' + 30seconds/move"]
[WhiteElo "2227"]
[BlackElo "2448"]

1. d4 {[%clk 00:05:04]} Nf6 {[%clk 00:05:02]} {[%emt 00:00:04]} 2. Nf3 {[%clk
00:05:05]} {[%emt 00:00:02]} c5 {[%clk 00:04:57]} {[%emt 00:00:08]} 3. e3
{[%clk 00:04:44]} {[%emt 00:00:24]} g6 {[%clk 00:04:53]} {[%emt 00:00:07]} 4.
Be2 {[%clk 00:04:45]} {[%emt 00:00:03]} Bg7 {[%clk 00:04:53]} {[%emt 00:00:01]}
5. O-O {[%clk 00:04:45]} {[%emt 00:00:02]} O-O {[%clk 00:04:36]} {[%emt
00:00:20]} 6. dxc5 {[%clk 00:04:47]} {[%emt 00:00:02]} Qa5 {[%clk 00:04:14]}
{[%emt 00:00:25]} 7. Qd4 {[%clk 00:04:09]} {[%emt 00:00:40]} Na6 {[%clk
00:03:30]} {[%emt 00:00:48]} 8. Bxa6 {[%clk 00:03:44]} {[%emt 00:00:28]} Qxa6
{[%clk 00:03:32]} {[%emt 00:00:02]} 9. Nbd2 {[%clk 00:03:10]} {[%emt 00:00:36]}
b6 {[%clk 00:03:31]} {[%emt 00:00:04]} 10. cxb6 {[%clk 00:03:05]} {[%emt
00:00:08]} axb6 {[%clk 00:03:29]} {[%emt 00:00:05]} 11. Nc4 {[%clk 00:02:23]}
{[%emt 00:00:44]} Bb7 {[%clk 00:03:19]} {[%emt 00:00:13]} 12. Nxb6 {[%clk
00:01:44]} {[%emt 00:00:43]} Nd5 {[%clk 00:03:06]} {[%emt 00:00:16]} 13. Qh4
{[%clk 00:00:38]} {[%emt 00:01:09]} Qxb6 {[%clk 00:02:25]} {[%emt 00:00:44]} 14.
e4 {[%clk 00:00:31]} {[%emt 00:00:09]} Nb4 {[%clk 00:02:15]} {[%emt 00:00:13]}
15. Bh6 {[%clk 00:00:21]} {[%emt 00:00:13]} Bxh6 {[%clk 00:02:05]} {[%emt
00:00:14]} 16. Qxh6 {[%clk 00:00:22]} {[%emt 00:00:01]} f6 {[%clk 00:02:02]}
{[%emt 00:00:06]} 17. c3 {[%clk 00:00:24]} {[%emt 00:00:02]} Nd3 {[%clk
00:01:37]} {[%emt 00:00:27]} 18. Qh4 {[%clk 00:00:07]} {[%emt 00:00:21]} d6
{[%clk 00:00:37]} {[%emt 00:01:03]} 19. Rfd1 {[%clk 00:00:08]} Nc5 {[%clk
00:00:35]} {[%emt 00:00:06]} 20. Nd4 {[%clk 00:00:07]} {[%emt 00:00:04]} e5
{[%clk 00:00:29]} {[%emt 00:00:08]} 21. Nb3 {[%clk 00:00:06]} {[%emt 00:00:05]}
Nxe4 {[%clk 00:00:25]} {[%emt 00:00:07]} 22. c4 {[%clk 00:00:04]} {[%emt
00:00:05]} g5 {[%clk 00:00:21]} {[%emt 00:00:06]} 0-1

[Event "7° Rencontres Internationales des Echecs Francophones"]
[Site "PARIS, France"]
[Date "2019.08.10"]
[Round "6.4"]
[White "Flom, Gabriel"]
[Black "Sochacki, Wojtek"]
[Result "1-0"]
[TimeControl "90'+30' + 30seconds/move"]
[WhiteElo "2355"]
[BlackElo "2303"]

1. d4 {[%clk 00:05:05]} {[%emt 00:05:11]} Nf6 {[%clk 00:05:04]} {[%emt
00:00:01]} 2. c4 {[%clk 00:05:07]} c5 {[%clk 00:05:07]} 3. d5 {[%clk 00:05:09]}
{[%emt 00:00:01]} b5 {[%clk 00:05:09]} 4. cxb5 {[%emt 00:00:03]} a6 5. e3
{[%clk 00:05:13]} axb5 {[%clk 00:05:03]} {[%emt 00:00:12]} 6. Bxb5 {[%clk
00:05:15]} Qa5+ {[%clk 00:04:46]} {[%emt 00:00:19]} 7. Nc3 {[%clk 00:05:17]}
Bb7 {[%clk 00:04:48]} 8. Bd2 {[%clk 00:05:09]} {[%emt 00:00:11]} Qb6 {[%clk
00:04:50]} 9. a4 {[%clk 00:05:02]} {[%emt 00:00:10]} Nxd5 {[%clk 00:04:44]}
{[%emt 00:00:10]} 10. Nxd5 {[%clk 00:04:43]} {[%emt 00:00:22]} Bxd5 {[%clk
00:04:45]} {[%emt 00:00:02]} 11. Nf3 {[%clk 00:04:45]} Bc6 {[%clk 00:04:36]}
{[%emt 00:00:12]} 12. Bxc6 {[%clk 00:04:45]} {[%emt 00:00:04]} Nxc6 {[%clk
00:04:38]} 13. Bc3 {[%clk 00:04:47]} Qa6 {[%clk 00:04:30]} {[%emt 00:00:11]} 14.
e4 {[%clk 00:04:40]} {[%emt 00:00:10]} d6 {[%clk 00:04:20]} {[%emt 00:00:13]}
15. e5 {[%clk 00:04:00]} {[%emt 00:00:43]} Rd8 {[%clk 00:03:56]} {[%emt
00:00:27]} 16. Qe2 {[%clk 00:02:20]} {[%emt 00:01:42]} Qxe2+ {[%clk 00:03:57]}
{[%emt 00:00:02]} 17. Kxe2 {[%clk 00:02:22]} d5 {[%clk 00:03:59]} {[%emt
00:00:02]} 18. e6 {[%clk 00:02:25]} fxe6 {[%clk 00:02:51]} {[%emt 00:01:12]} 19.
Ne5 {[%clk 00:02:27]} {[%emt 00:00:01]} Nb8 {[%clk 00:02:25]} {[%emt 00:00:29]}
20. a5 {[%clk 00:02:19]} {[%emt 00:00:11]} Na6 21. b4 {[%clk 00:02:22]} cxb4
{[%clk 00:01:55]} {[%emt 00:00:36]} 22. Bd4 {[%clk 00:02:24]} Nc7 {[%clk
00:01:28]} {[%emt 00:00:30]} 23. Bb6 {[%clk 00:02:18]} {[%emt 00:00:08]} g5
{[%clk 00:00:44]} {[%emt 00:00:48]} 24. Bxc7 {[%clk 00:02:18]} {[%emt
00:00:03]} Rc8 {[%clk 00:00:46]} 25. a6 {[%clk 00:01:34]} {[%emt 00:00:47]} Bg7
{[%clk 00:00:48]} 26. a7 {[%clk 00:01:36]} Ra8 {[%clk 00:00:51]} 27. Bb8 {[%clk
00:01:20]} {[%emt 00:00:20]} Rf8 {[%clk 00:00:51]} {[%emt 00:00:02]} 28. Rhc1
{[%clk 00:01:06]} {[%emt 00:00:17]} Kd8 {[%clk 00:00:54]} 29. Ra6 {[%clk
00:00:44]} {[%emt 00:00:26]} Rf5 {[%clk 00:00:41]} {[%emt 00:00:15]} 30. Nd3
{[%clk 00:00:29]} {[%emt 00:00:19]} Bc3 {[%clk 00:00:37]} {[%emt 00:00:07]} 31.
Rb1 {[%clk 00:00:26]} {[%emt 00:00:06]} Kd7 {[%clk 00:00:20]} {[%emt 00:00:19]}
32. Nxb4 {[%clk 00:00:28]} {[%emt 00:00:01]} Rf8 {[%clk 00:00:16]} {[%emt
00:00:07]} 33. Nd3 {[%clk 00:00:29]} {[%emt 00:00:02]} Bd4 {[%clk 00:00:13]}
{[%emt 00:00:06]} 34. Rb7+ {[%clk 00:00:30]} {[%emt 00:00:02]} Kd8 {[%clk
00:00:10]} {[%emt 00:00:05]} 35. Rxe6 {[%clk 00:00:29]} {[%emt 00:00:04]} Kc8
{[%clk 00:00:08]} {[%emt 00:00:06]} 36. Rexe7 {[%clk 00:00:20]} {[%emt
00:00:12]} Kd8 {[%clk 00:00:11]} 37. Rbd7+ {[%clk 00:00:20]} {[%emt 00:00:03]}
Kc8 {[%clk 00:00:13]} 38. Rf7 {[%clk 00:00:22]} {[%emt 00:00:02]} Re8+ {[%clk
00:00:15]} 39. Rde7 {[%clk 00:00:25]} Rg8 {[%clk 00:00:17]} 40. Rg7 {[%clk
00:00:25]} {[%emt 00:00:03]} Bxg7 {[%clk 00:00:19]} {[%emt 00:00:02]} 41. Nc5
{[%clk 00:00:25]} {[%emt 00:00:03]} Bc3 {[%clk 00:00:13]} {[%emt 00:00:09]} 42.
Rc7+ {[%clk 00:00:20]} {[%emt 00:00:08]} Kd8 {[%clk 00:00:15]} 43. Ne6+ {[%clk
00:00:23]} Ke8 {[%clk 00:00:17]} 44. Rxc3 {[%clk 00:00:26]} {[%emt 00:00:03]}
Ke7 {[%clk 00:00:15]} {[%emt 00:00:04]} 45. Nc7 {[%clk 00:00:27]} {[%emt
00:00:02]} Raxb8 {[%clk 00:00:17]} {[%emt 00:00:02]} 46. axb8=Q {[%clk
00:00:28]} {[%emt 00:00:02]} Rxb8 {[%clk 00:00:19]} {[%emt 00:00:01]} 47. Nxd5+
{[%emt 00:00:01]} Kf7 48. g4 {[%clk 00:00:28]} {[%emt 00:00:04]} Ke6 {[%clk
00:00:23]} {[%emt 00:00:02]} 49. Ne3 {[%clk 00:00:30]} Rb6 {[%clk 00:00:21]}
{[%emt 00:00:06]} 50. Rc5 {[%clk 00:00:28]} {[%emt 00:00:05]} Rb2+ {[%clk
00:00:21]} {[%emt 00:00:03]} 51. Kf3 {[%clk 00:00:30]} Kf6 {[%clk 00:00:24]} 52.
Rc6+ {[%clk 00:00:31]} {[%emt 00:00:03]} Ke5 {[%clk 00:00:25]} {[%emt
00:00:02]} 53. Rc7 {[%clk 00:00:29]} {[%emt 00:00:01]} h6 {[%clk 00:00:24]}
{[%emt 00:00:07]} 54. Rc6 {[%clk 00:00:32]} Rb4 {[%clk 00:00:13]} {[%emt
00:00:14]} 55. Kg2 {[%clk 00:00:14]} {[%emt 00:00:21]} h5 {[%clk 00:00:11]}
{[%emt 00:00:05]} 56. gxh5 {[%clk 00:00:15]} {[%emt 00:00:01]} Rh4 {[%clk
00:00:12]} {[%emt 00:00:02]} 57. h6 {[%clk 00:00:17]} g4 {[%clk 00:00:12]}
{[%emt 00:00:04]} 58. Rg6 {[%clk 00:00:18]} {[%emt 00:00:02]} Rh5 {[%clk
00:00:08]} {[%emt 00:00:07]} 59. Rxg4 {[%clk 00:00:15]} {[%emt 00:00:04]} Rxh6
{[%clk 00:00:11]} {[%emt 00:00:02]} 60. h4 {[%clk 00:00:17]} Kf6 {[%clk
00:00:12]} {[%emt 00:00:02]} 61. Rc4 {[%clk 00:00:17]} {[%emt 00:00:03]} Kf7
{[%clk 00:00:13]} {[%emt 00:00:01]} 62. Rc7+ {[%clk 00:00:19]} {[%emt
00:00:01]} Kg8 {[%clk 00:00:15]} 63. Kg3 {[%clk 00:00:21]} {[%emt 00:00:02]}
Rg6+ {[%clk 00:00:17]} 64. Ng4 {[%clk 00:00:23]} Kh8 {[%clk 00:00:18]} {[%emt
00:00:02]} 65. f4 {[%emt 00:00:02]} Rg8 66. f5 {[%clk 00:00:21]} {[%emt
00:00:02]} Rf8 {[%clk 00:00:18]} {[%emt 00:00:03]} 67. Kf4 {[%clk 00:00:23]}
{[%emt 00:00:02]} Ra8 {[%clk 00:00:20]} {[%emt 00:00:01]} 68. Re7 {[%clk
00:00:24]} {[%emt 00:00:02]} Rf8 {[%clk 00:00:21]} {[%emt 00:00:02]} 69. Ke5
{[%clk 00:00:23]} {[%emt 00:00:03]} Rg8 {[%clk 00:00:23]} {[%emt 00:00:01]} 70.
Nf6 {[%clk 00:00:19]} {[%emt 00:00:08]} Rg7 {[%clk 00:00:23]} {[%emt 00:00:02]}
71. Re8+ {[%clk 00:00:20]} {[%emt 00:00:02]} 1-0

[Event "7° Rencontres Internationales des Echecs Francophones"]
[Site "PARIS, France"]
[Date "2019.08.10"]
[Round "6.6"]
[White "Le Roux, Jean-Pierre"]
[Black "Ralison, Milanto Harifidy"]
[Result "1-0"]
[TimeControl "90'+30' + 30seconds/move"]
[WhiteElo "2535"]
[BlackElo "2277"]

1. d4 {[%clk 00:05:04]} {[%emt 00:00:01]} Nf6 {[%clk 00:05:05]} {[%emt
00:00:01]} 2. Nf3 {[%clk 00:05:05]} {[%emt 00:00:02]} g6 {[%clk 00:05:07]}
{[%emt 00:00:03]} 3. Nbd2 {[%clk 00:05:07]} d5 {[%clk 00:05:09]} {[%emt
00:00:01]} 4. e3 {[%clk 00:05:09]} Bg7 {[%clk 00:05:11]} 5. b4 {[%clk
00:05:11]} a5 {[%clk 00:05:12]} {[%emt 00:00:03]} 6. b5 {[%clk 00:05:12]} c5
{[%clk 00:05:11]} {[%emt 00:00:05]} 7. bxc6 {[%clk 00:05:03]} {[%emt 00:00:11]}
bxc6 {[%clk 00:05:11]} {[%emt 00:00:03]} 8. Ba3 {[%clk 00:04:58]} {[%emt
00:00:09]} O-O {[%clk 00:05:11]} {[%emt 00:00:03]} 9. Be2 {[%clk 00:04:59]}
{[%emt 00:00:02]} Ba6 {[%clk 00:05:12]} {[%emt 00:00:03]} 10. O-O {[%clk
00:04:58]} {[%emt 00:00:02]} Re8 {[%clk 00:05:04]} {[%emt 00:00:11]} 11. Rb1
{[%clk 00:04:52]} {[%emt 00:00:09]} Bc8 {[%clk 00:04:48]} {[%emt 00:00:19]} 12.
c4 {[%clk 00:04:19]} {[%emt 00:00:35]} Ba6 {[%clk 00:04:45]} {[%emt 00:00:07]}
13. Qa4 {[%clk 00:03:57]} {[%emt 00:00:25]} dxc4 {[%clk 00:04:10]} {[%emt
00:00:38]} 14. Bxc4 {[%clk 00:03:49]} {[%emt 00:00:11]} Nd5 {[%clk 00:04:02]}
{[%emt 00:00:11]} 15. Rfc1 {[%clk 00:03:47]} {[%emt 00:00:05]} Nb6 {[%clk
00:03:53]} {[%emt 00:00:12]} 16. Qc2 {[%clk 00:02:21]} {[%emt 00:01:29]} Nxc4
{[%clk 00:03:49]} {[%emt 00:00:07]} 17. Nxc4 {[%clk 00:02:23]} Nd7 {[%clk
00:03:44]} {[%emt 00:00:08]} 18. h3 {[%clk 00:02:12]} {[%emt 00:00:14]} Bb5
{[%clk 00:03:29]} {[%emt 00:00:18]} 19. Nfd2 {[%clk 00:01:41]} {[%emt
00:00:34]} a4 {[%clk 00:03:20]} {[%emt 00:00:12]} 20. Ne4 {[%clk 00:01:39]}
{[%emt 00:00:05]} h6 {[%clk 00:02:56]} {[%emt 00:00:27]} 21. Ncd2 {[%clk
00:01:37]} {[%emt 00:00:06]} Nb6 {[%clk 00:02:48]} {[%emt 00:00:10]} 22. Nc3
{[%clk 00:01:30]} {[%emt 00:00:10]} Ba6 {[%clk 00:02:34]} {[%emt 00:00:18]} 23.
Bc5 {[%clk 00:01:29]} {[%emt 00:00:04]} Nd5 {[%clk 00:02:11]} {[%emt 00:00:25]}
24. Nxa4 {[%clk 00:01:30]} {[%emt 00:00:03]} Bb5 {[%clk 00:02:08]} {[%emt
00:00:05]} 25. Nb6 {[%clk 00:00:35]} {[%emt 00:00:59]} Nxb6 {[%clk 00:01:46]}
{[%emt 00:00:26]} 26. Bxb6 {[%clk 00:00:37]} Qd5 {[%clk 00:01:19]} {[%emt
00:00:30]} 27. Qb3 {[%clk 00:00:38]} {[%emt 00:00:02]} Qh5 {[%clk 00:01:12]}
{[%emt 00:00:09]} 28. Bc5 {[%clk 00:00:35]} {[%emt 00:00:07]} e5 {[%clk
00:01:10]} {[%emt 00:00:05]} 29. dxe5 {[%clk 00:00:30]} {[%emt 00:00:07]} Bxe5
{[%clk 00:01:05]} {[%emt 00:00:08]} 30. Nf3 {[%clk 00:00:32]} Bg7 {[%clk
00:01:04]} {[%emt 00:00:04]} 31. Bd4 {[%clk 00:00:34]} {[%emt 00:00:02]} Bf8
{[%clk 00:00:57]} {[%emt 00:00:11]} 32. Qc2 {[%clk 00:00:28]} {[%emt 00:00:09]}
Qd5 {[%clk 00:00:55]} {[%emt 00:00:04]} 33. Ba1 {[%clk 00:00:26]} {[%emt
00:00:06]} Bg7 {[%clk 00:00:38]} {[%emt 00:00:19]} 34. Bxg7 {[%emt 00:00:02]}
Kxg7 35. Rb2 {[%clk 00:00:29]} {[%emt 00:00:02]} Red8 {[%clk 00:00:39]} {[%emt
00:00:05]} 36. Nd4 {[%clk 00:00:30]} {[%emt 00:00:01]} Ba4 {[%clk 00:00:28]}
{[%emt 00:00:14]} 37. Qc3 {[%clk 00:00:32]} Kh7 {[%clk 00:00:26]} {[%emt
00:00:05]} 38. a3 {[%clk 00:00:33]} {[%emt 00:00:03]} Rdc8 {[%clk 00:00:26]}
{[%emt 00:00:03]} 39. Qc5 {[%clk 00:00:27]} {[%emt 00:00:08]} Qd7 {[%clk
00:00:23]} {[%emt 00:00:06]} 40. Rcb1 {[%clk 00:00:26]} {[%emt 00:00:04]} Rc7
{[%clk 00:00:18]} {[%emt 00:00:08]} 41. Rb4 {[%clk 00:00:26]} {[%emt 00:00:03]}
Rca7 {[%clk 00:00:11]} {[%emt 00:00:10]} 42. Rb6 {[%clk 00:00:11]} {[%emt
00:00:19]} Ra5 {[%clk 00:00:13]} 43. Qc3 {[%clk 00:00:13]} {[%emt 00:00:01]} c5
{[%clk 00:00:09]} {[%emt 00:00:07]} 44. Nf3 {[%clk 00:00:15]} Rb5 {[%clk
00:00:05]} {[%emt 00:00:07]} 45. R6xb5 {[%clk 00:00:17]} Bxb5 {[%clk 00:00:07]}
{[%emt 00:00:01]} 46. Ne5 {[%clk 00:00:12]} {[%emt 00:00:09]} Qe8 {[%clk
00:00:06]} {[%emt 00:00:04]} 47. Ng4 {[%clk 00:00:14]} 1-0

[Event "7° Rencontres Internationales des Echecs Francophones"]
[Site "PARIS, France"]
[Date "2019.08.10"]
[Round "6.2"]
[White "Ider, Borya"]
[Black "Moussard, Jules"]
[Result "0-1"]
[TimeControl "90'+30' + 30seconds/move"]
[WhiteElo "2492"]
[BlackElo "2613"]

1. Nh3 {[%clk 00:05:04]} Nh6 {[%clk 00:05:05]} {[%emt 00:00:02]} 2. Na3 {[%clk
00:05:05]} {[%emt 00:00:02]} Na6 {[%clk 00:05:07]} {[%emt 00:00:02]} 3. b3
{[%clk 00:05:06]} b6 {[%clk 00:05:08]} {[%emt 00:00:01]} 4. Bb2 {[%clk
00:05:08]} Bb7 {[%clk 00:05:11]} 5. Nf4 {[%clk 00:05:08]} {[%emt 00:00:03]} Nf5
{[%clk 00:05:12]} {[%emt 00:00:01]} 6. Nc4 {[%clk 00:05:05]} {[%emt 00:00:05]}
d6 {[%clk 00:05:08]} {[%emt 00:00:07]} 7. d4 {[%clk 00:05:01]} {[%emt
00:00:07]} e6 {[%clk 00:05:05]} {[%emt 00:00:06]} 8. e3 {[%clk 00:04:33]}
{[%emt 00:00:31]} Be7 {[%clk 00:05:04]} {[%emt 00:00:04]} 9. Bd3 {[%clk
00:04:34]} {[%emt 00:00:02]} Nh4 {[%clk 00:04:59]} {[%emt 00:00:07]} 10. d5
{[%clk 00:04:12]} {[%emt 00:00:25]} e5 {[%clk 00:04:56]} {[%emt 00:00:07]} 11.
Qg4 {[%clk 00:04:09]} {[%emt 00:00:06]} O-O {[%clk 00:03:48]} {[%emt 00:01:11]}
12. e4 {[%clk 00:02:55]} {[%emt 00:01:17]} g6 {[%clk 00:03:38]} {[%emt
00:00:13]} 13. Ne2 {[%clk 00:02:39]} {[%emt 00:00:18]} Nc5 {[%clk 00:03:34]}
{[%emt 00:00:07]} 14. Ne3 {[%clk 00:02:32]} {[%emt 00:00:10]} Nxd3+ {[%clk
00:03:29]} {[%emt 00:00:08]} 15. cxd3 {[%clk 00:02:34]} {[%emt 00:00:01]} f5
{[%clk 00:03:32]} {[%emt 00:00:02]} 16. exf5 {[%clk 00:02:17]} {[%emt
00:00:20]} Nxf5 {[%clk 00:03:33]} 17. Nxf5 {[%clk 00:02:17]} {[%emt 00:00:03]}
Rxf5 {[%clk 00:03:35]} 18. Qc4 {[%clk 00:01:56]} {[%emt 00:00:24]} Qd7 {[%clk
00:03:12]} {[%emt 00:00:26]} 19. Rc1 {[%clk 00:01:49]} {[%emt 00:00:09]} Rc8
{[%clk 00:03:14]} 20. O-O {[%clk 00:01:47]} {[%emt 00:00:05]} b5 {[%clk
00:03:17]} {[%emt 00:00:01]} 21. Qg4 {[%clk 00:01:44]} {[%emt 00:00:06]} Bf8
{[%clk 00:02:59]} {[%emt 00:00:21]} 22. Nc3 {[%clk 00:01:28]} {[%emt 00:00:19]}
Rf7 {[%clk 00:02:44]} {[%emt 00:00:18]} 23. Qxd7 {[%clk 00:01:26]} {[%emt
00:00:04]} Rxd7 {[%clk 00:02:46]} 24. Nxb5 {[%clk 00:01:19]} {[%emt 00:00:12]}
Bxd5 {[%clk 00:02:47]} {[%emt 00:00:02]} 25. Rc2 {[%clk 00:00:55]} {[%emt
00:00:26]} a6 {[%clk 00:02:49]} {[%emt 00:00:02]} 26. Nc3 {[%clk 00:00:57]} Bb7
{[%clk 00:02:51]} 27. Ne4 {[%clk 00:00:58]} {[%emt 00:00:02]} Bg7 {[%clk
00:02:27]} {[%emt 00:00:27]} 28. Rfc1 {[%clk 00:00:40]} {[%emt 00:00:21]} Kf7
{[%clk 00:02:03]} {[%emt 00:00:27]} 29. Ba3 {[%clk 00:00:42]} Bf8 {[%clk
00:02:04]} {[%emt 00:00:02]} 30. Bb4 {[%clk 00:00:25]} {[%emt 00:00:20]} c5
{[%clk 00:02:00]} {[%emt 00:00:07]} 31. Bc3 {[%clk 00:00:20]} {[%emt 00:00:08]}
h6 {[%clk 00:01:59]} {[%emt 00:00:04]} 32. Rf1 {[%clk 00:00:09]} {[%emt
00:00:13]} g5 {[%clk 00:02:00]} {[%emt 00:00:03]} 33. h4 {[%clk 00:00:11]} Kg6
{[%clk 00:01:59]} {[%emt 00:00:05]} 34. hxg5 {[%clk 00:00:09]} {[%emt
00:00:05]} hxg5 {[%clk 00:02:02]} {[%emt 00:00:01]} 35. Re2 {[%clk 00:00:08]}
{[%emt 00:00:03]} Rh7 {[%clk 00:02:03]} {[%emt 00:00:02]} 36. Ng3 {[%clk
00:00:06]} {[%emt 00:00:05]} Be7 {[%clk 00:02:05]} {[%emt 00:00:01]} 37. f3
{[%clk 00:00:06]} {[%emt 00:00:03]} Rh4 {[%clk 00:02:03]} {[%emt 00:00:05]} 38.
Kf2 {[%clk 00:00:07]} {[%emt 00:00:02]} Rf8 {[%clk 00:02:05]} {[%emt 00:00:01]}
39. Ne4 {[%clk 00:00:08]} {[%emt 00:00:02]} g4 {[%clk 00:02:05]} {[%emt
00:00:03]} 40. Rg1 {[%clk 00:00:07]} {[%emt 00:00:04]} Rh7 {[%clk 00:01:56]}
{[%emt 00:00:11]} 41. Ke1 {[%clk 00:00:06]} {[%emt 00:00:05]} Bc8 {[%clk
00:01:35]} {[%emt 00:00:24]} 42. fxg4 {[%emt 00:00:06]} 0-1